Department Family,Entity,Pay date,Expense Type(T),Expense Area(T),Supplier(T),Transaction Number,Amount,Description
NS&I,NS&I,12/04/2023,Capital suspense account,Rainbow,IBM United Kingdom Ltd,4023218,"6,028,357.27",IT integration platform delivery
NS&I,NS&I,19/04/2023,Unitary fee - Outsource partner,Commercial and Legal,Atos IT Services UK Ltd,4023305,"5,671,960.45",Unitary service charge - April 2023
NS&I,NS&I,12/04/2023,Demand-linked costs - Outsource partner,Delivery & Monitoring,Atos IT Services UK Ltd,4023205,"3,021,507.00",Demand link service charge - March 2023
NS&I,NS&I,27/04/2023,Unitary fee - Outsource partner,B2B Government Payment Services,Atos IT Services UK Ltd,4023368,"1,325,543.97",Tax-free childcare service charges - April 2023
NS&I,NS&I,05/04/2023,Consultancy services,Rainbow,PA Consulting Services Ltd,4023115,"712,050.00",Strategic business advice and support
NS&I,NS&I,19/04/2023,Unitary fee - Outsource partner,B2B Government Payment Services,Atos IT Services UK Ltd,4023238,"462,852.72",Help to save service charges - February 2023
NS&I,NS&I,26/04/2023,Consultancy services,Rainbow,PA Consulting Services Ltd,4023235,"453,068.69",Strategic business advice and support
NS&I,NS&I,12/04/2023,Project costs - Outsource partner,Programme Delivery,Atos IT Services UK Ltd,4023258,"437,677.00",Process testing capability
NS&I,NS&I,12/04/2023,Project costs - Outsource partner,Programme Delivery,Atos IT Services UK Ltd,4023259,"437,677.00",Process testing capability
NS&I,NS&I,19/04/2023,Unitary fee - Outsource partner,B2B Government Payment Services,Atos IT Services UK Ltd,4023239,"431,185.62",Tax-free childcare service charges - February 2023
NS&I,NS&I,26/04/2023,Professional services - Other,Rainbow,Actica Consulting Ltd,4023269,"292,534.70",Strategic Business Design Support
NS&I,NS&I,19/04/2023,Unitary fee - Outsource partner,B2B Government Payment Services,Atos IT Services UK Ltd,4023309,"348,637.73",Help to buy service charges February 2023
NS&I,NS&I,12/04/2023,Project costs - Outsource partner,Programme Delivery,Atos IT Services UK Ltd,4023189,"279,728.00",Data storage improvements
NS&I,NS&I,05/04/2023,Building services charge,Workplace & Culture,Government Property Agency,4023157,"279,335.45",Quarterly Rent for Regional Office Q4 2022
NS&I,NS&I,05/04/2023,Project costs - Outsource partner,Programme Delivery,Atos IT Services UK Ltd,4022999,"187,897.00",Customer journey enhancements
NS&I,NS&I,27/04/2023,Project costs - Outsource partner,Programme Delivery,Atos IT Services UK Ltd,4023328,"184,706.00",Data storage improvements
NS&I,NS&I,24/04/2023,Professional services - Other,Rainbow,Capgemini UK plc (SIAM Partner),4023299,"184,278.24",Strategic Business Design Support
NS&I,NS&I,05/04/2023,Consultancy services,Rainbow,PA Consulting Services Ltd,4023175,"177,609.19",Strategic business advice and support
NS&I,NS&I,05/04/2023,Consultancy services,Rainbow,PA Consulting Services Ltd,4023156,"175,815.00",Strategic business advice and support
NS&I,NS&I,12/04/2023,Project costs - Outsource partner,Programme Delivery,Atos IT Services UK Ltd,4023267,"138,224.00",Product enhancement
NS&I,NS&I,12/04/2023,Project costs - Outsource partner,Programme Delivery,Atos IT Services UK Ltd,4023203,"127,634.00",Programme management cost March 2023
NS&I,NS&I,05/04/2023,Project costs - Outsource partner,Programme Delivery,Atos IT Services UK Ltd,4023116,"119,503.00",Data maintenance work
NS&I,NS&I,05/04/2023,Project costs - Outsource partner,Programme Delivery,Atos IT Services UK Ltd,4023117,"98,956.00",Service change costs
NS&I,NS&I,12/04/2023,Maintenance and running costs - Outsource partner,Rainbow,Atos IT Services UK Ltd,4023214,"97,526.00",Process testing capability
NS&I,NS&I,05/04/2023,Professional services - Other,Information & Technology,Bloom Procurement Services Limited,4023109,"96,000.00",Strategic change planning
NS&I,NS&I,12/04/2023,Maintenance and running costs - Outsource partner,Business Insight,Atos IT Services UK Ltd,4023201,"90,245.00",Data warehouse development work
NS&I,NS&I,12/04/2023,Professional services - Other,Business Insight,Equiniti Limited,4023198,"90,228.60",Data Updating
NS&I,NS&I,19/04/2023,Maintenance and running costs - Outsource partner,Information & Technology,Atos IT Services UK Ltd,4023313,"88,400.00","Enhance, identify, detect and isolate malicious cyber activity"
NS&I,NS&I,12/04/2023,Maintenance and running costs - Outsource partner,B2B & Operations Assurance,Atos IT Services UK Ltd,4023151,"87,359.00",Customer journey improvements
NS&I,NS&I,13/04/2023,Maintenance and running costs - Outsource partner,B2B & Operations Assurance,Atos IT Services UK Ltd,4023282,"86,598.00",Customer journey improvements
NS&I,NS&I,12/04/2023,Professional services - Other,Business Insight,Equiniti Limited,4023199,"86,590.44",Data maintenance work
NS&I,NS&I,05/04/2023,Direct marketing,Marketing Communications,Unlimited Group United Ltd,4023212,"81,654.79",Cost of Marketing Campaigns
NS&I,NS&I,05/04/2023,Advertising and production,Intermediary Relationships,Discovery Research Ltd.,4023093,"75,240.00",Qualitative & quantitative research
NS&I,NS&I,05/04/2023,Product account bank charges,Finance,HMRC (Government Banking Service),4023162,"75,000.00",HMRC GBS Management Fees
NS&I,NS&I,26/04/2023,Unitary fee - Outsource partner,B2B Government Payment Services,Atos IT Services UK Ltd,4023362,"74,409.33",Court Funds Office Service Charges March 2023
NS&I,NS&I,05/04/2023,Direct marketing,Marketing Communications,Unlimited Group United Ltd,4023222,"71,674.63",Cost of Marketing Campaigns
NS&I,NS&I,19/04/2023,Maintenance and running costs - Outsource partner,Information & Technology,Atos IT Services UK Ltd,4023281,"70,417.00",Delivering IT orchestration improvements February 2023
NS&I,NS&I,12/04/2023,Project costs - Outsource partner,Programme Delivery,Atos IT Services UK Ltd,4023246,"68,906.00",Improving customer communication channels
NS&I,NS&I,12/04/2023,Project costs - Outsource partner,Programme Delivery,Atos IT Services UK Ltd,4023241,"67,907.00",Delivering IT integration enhancements
NS&I,NS&I,05/04/2023,Advertising and production,Marketing Communications,Manning Gottlieb OMD,4023164,"67,551.39",Cost of Marketing Campaigns
NS&I,NS&I,05/04/2023,Project costs - Outsource partner,Programme Delivery,Atos IT Services UK Ltd,4023021,"67,140.00",Corporate system improvements
NS&I,NS&I,12/04/2023,Professional services - Other,Rainbow,Capgemini Financial Services UK Ltd (IT Partner),4023233,"65,481.00",IT delivery partner support�
NS&I,NS&I,05/04/2023,Project costs - Outsource partner,Programme Delivery,Atos IT Services UK Ltd,4022947,"62,793.00",Updating customer communications
NS&I,NS&I,12/04/2023,Maintenance and running costs - Outsource partner,Rainbow,Atos IT Services UK Ltd,4023076,"57,343.00",Process testing capability� 
NS&I,NS&I,05/04/2023,Business intelligence and analysis,Business Insight,CACI Ltd,4023200,"55,018.20","Creation of models for age, channel and savings value band"
NS&I,NS&I,19/04/2023,Unitary fee - Outsource partner,B2B Government Payment Services,Atos IT Services UK Ltd,4023211,"50,342.74",Tax-free childcare service charges - February 2023
NS&I,NS&I,12/04/2023,Project costs - Outsource partner,Programme Delivery,Atos IT Services UK Ltd,4023071,"49,913.00",Service change costs
NS&I,NS&I,05/04/2023,Project costs - Outsource partner,Programme Delivery,Atos IT Services UK Ltd,4023020,"49,909.00",Corporate system improvements
NS&I,NS&I,05/04/2023,Professional services - Other,Design & Validation,Discovery Research Ltd.,4023177,"48,710.40",Qualitative & quantitative research
NS&I,NS&I,12/04/2023,Advertising agency costs,Marketing Communications,Unlimited Group United Ltd,4023255,"47,993.94",Cost of Marketing Campaigns
NS&I,NS&I,19/04/2023,Unitary fee - Outsource partner,B2B Government Payment Services,Atos IT Services UK Ltd,4023187,"46,540.88",Tax-free childcare service charges - February 2023
NS&I,NS&I,19/04/2023,Unitary fee - Outsource partner,B2B Government Payment Services,Atos IT Services UK Ltd,4023188,"46,540.88",30 Hours service charges - February 2023
NS&I,NS&I,26/04/2023,Unitary fee - Outsource partner,B2B Government Payment Services,Atos IT Services UK Ltd,4023326,"46,310.59",Court Funds Office Service Charges March 2023
NS&I,NS&I,05/04/2023,Project costs - Outsource partner,Programme Delivery,Atos IT Services UK Ltd,4023036,"45,242.00",Data maintenance work
NS&I,NS&I,19/04/2023,Professional services - Other,Complaint's Management,Financial Ombudsman Services,4023272,"44,250.00",Case Fee Charges April 2023
NS&I,NS&I,05/04/2023,Professional services - Other,Rainbow,Bloom Procurement Services Limited,4023217,"41,400.00",Enhancing delivery channels
NS&I,NS&I,12/04/2023,Business intelligence and analysis,Market Intelligence & Research,MoneyFacts Group,4023263,"38,600.00",MoneyFactsLicence 1 April 2023 - 31 March 2024
NS&I,NS&I,19/04/2023,Professional services - Other,Design & Validation,Discovery Research Ltd.,4023286,"38,210.40",Qualitative & quantitative research
NS&I,NS&I,12/04/2023,Professional services - Other,Rainbow,Capgemini Financial Services UK Ltd (IT Partner),4023232,"37,674.00",IT delivery partner support�
NS&I,NS&I,12/04/2023,Maintenance and running costs - Outsource partner,Rainbow,Atos IT Services UK Ltd,4023260,"37,614.00",Process testing capability
NS&I,NS&I,05/04/2023,Project costs - Outsource partner,Programme Delivery,Atos IT Services UK Ltd,4023038,"35,037.00",Customer journey amendment
NS&I,NS&I,05/04/2023,Project costs - Outsource partner,Programme Delivery,Atos IT Services UK Ltd,4022989,"34,319.00",Data storage improvements
NS&I,NS&I,05/04/2023,Direct marketing,Marketing Communications,Unlimited Group United Ltd,4023224,"32,090.66",Cost of Marketing Campaigns
NS&I,NS&I,26/04/2023,Project costs - Outsource partner,Programme Delivery,Atos IT Services UK Ltd,4023327,"31,989.00",Data maintenance work
NS&I,NS&I,12/04/2023,Direct marketing,Marketing Communications,Unlimited Group United Ltd,4023250,"31,365.60",Cost of Marketing Campaigns
NS&I,NS&I,12/04/2023,Direct marketing,Marketing Communications,Unlimited Group United Ltd,4023249,"31,163.64",Cost of Marketing Campaigns
NS&I,NS&I,13/04/2023,Project costs - Outsource partner,Programme Delivery,Atos IT Services UK Ltd,4023268,"29,181.00",Strategic customers Research
NS&I,NS&I,12/04/2023,Project costs - Outsource partner,Programme Delivery,Atos IT Services UK Ltd,4023245,"27,820.00",Service change costs
NS&I,NS&I,05/04/2023,Advertising agency costs,Marketing Communications,Unlimited Group United Ltd,4023226,"27,755.44",Cost of Marketing Campaigns
NS&I,NS&I,05/04/2023,Software/ Licence fees (non-capital),Brand,Atos IT Services UK Ltd,4023075,"27,118.00",Brand development work
NS&I,NS&I,05/04/2023,Project costs - Outsource partner,Programme Delivery,Atos IT Services UK Ltd,4023037,"27,034.00",Data maintenance work
NS&I,NS&I,05/04/2023,Direct marketing,Marketing Communications,Unlimited Group United Ltd,4023225,"26,800.00",Cost of Marketing Campaigns
NS&I,NS&I,19/04/2023,Maintenance and running costs - Outsource partner,Information & Technology,Atos IT Services UK Ltd,4023300,"26,539.00",FA portal website service costs
NS&I,NS&I,05/04/2023,Demand-linked costs - Outsource partner,Delivery & Monitoring,Atos IT Services UK Ltd,4023210,"26,274.00",Demand link service charge - February 2023
NS&I,NS&I,05/04/2023,Advertising and production,Marketing Communications,Manning Gottlieb OMD,4023150,"26,244.68",Cost of Marketing Campaigns
NS&I,NS&I,05/04/2023,Direct marketing,Marketing Communications,Unlimited Group United Ltd,4023223,"25,763.64",Cost of Marketing Campaigns
NS&I,NS&I,12/04/2023,Project costs - Outsource partner,Programme Delivery,Atos IT Services UK Ltd,4023091,"25,761.00",Enhancing operational flexibility
NS&I,NS&I,12/04/2023,Project costs - Outsource partner,Programme Delivery,Atos IT Services UK Ltd,4023114,"25,553.00",Enhancing operational flexibility
NS&I,NS&I,12/04/2023,Software/ Licence fees (non-capital),Workplace & Culture,Atos IT Services UK Ltd,4023192,"25,092.00",Corporate IT Software cost
